[Event "Early-Titled-Tuesday-Blitz-February-06-2024"]
[Site "Chess.com"]
[Date "2024.02.06"]
[Round "11"]
[White "malakismayil"]
[Black "FredddieCroderg"]
[Result "1/2-1/2"]
[WhiteElo "2497"]
[BlackElo "2382"]
[TimeControl "180+1"]
[EndTime "10:06:58 PST"]
[Termination "Game drawn by repetition"]

1. e4 {[%clk 0:03:00.9]} 1... c6 {[%clk 0:02:57.3]} 2. d4 {[%clk 0:03:00.6]}
2... d5 {[%clk 0:02:55.1]} 3. Nc3 {[%clk 0:03:01]} 3... a6 {[%clk 0:02:54.4]} 4.
Nf3 {[%clk 0:02:58.9]} 4... Be6 {[%clk 0:02:53.1]} 5. Bf4 {[%clk 0:02:56.2]}
5... Nf6 {[%clk 0:02:51.6]} 6. Bd3 {[%clk 0:02:55.6]} 6... b5 {[%clk 0:02:50.3]}
7. a3 {[%clk 0:02:55.5]} 7... Bg4 {[%clk 0:02:42.7]} 8. e5 {[%clk 0:02:47.3]}
8... Nh5 {[%clk 0:02:36.5]} 9. Be3 {[%clk 0:02:45.1]} 9... e6 {[%clk 0:02:32.6]}
10. h3 {[%clk 0:02:43.7]} 10... Bxf3 {[%clk 0:02:32.6]} 11. Qxf3 {[%clk
0:02:44.6]} 11... g6 {[%clk 0:02:32.6]} 12. g4 {[%clk 0:02:44]} 12... Ng7 {[%clk
0:02:31.9]} 13. h4 {[%clk 0:02:44.6]} 13... h5 {[%clk 0:02:30.1]} 14. Bg5 {[%clk
0:02:44.7]} 14... Be7 {[%clk 0:02:25.2]} 15. Bxe7 {[%clk 0:02:34.5]} 15... Qxe7
{[%clk 0:02:22.6]} 16. Qf6 {[%clk 0:02:35.4]} 16... Rh7 {[%clk 0:02:03.8]} 17.
f3 {[%clk 0:02:29.8]} 17... Nd7 {[%clk 0:01:56.6]} 18. Qxe7+ {[%clk 0:02:18.3]}
18... Kxe7 {[%clk 0:01:57]} 19. g5 {[%clk 0:02:14]} 19... Nf5 {[%clk 0:01:55.4]}
20. Bxf5 {[%clk 0:02:13.9]} 20... exf5 {[%clk 0:01:56.2]} 21. Ne2 {[%clk
0:02:12.6]} 21... Nf8 {[%clk 0:01:55.1]} 22. Nf4 {[%clk 0:02:12.1]} 22... Ne6
{[%clk 0:01:54.3]} 23. Nxe6 {[%clk 0:02:12.2]} 23... fxe6 {[%clk 0:01:52.6]} 24.
a4 {[%clk 0:02:11.8]} 24... Rhh8 {[%clk 0:01:51.1]} 25. Kd2 {[%clk 0:02:09.2]}
25... Kd7 {[%clk 0:01:50.7]} 26. Kc3 {[%clk 0:02:08.8]} 26... Kc7 {[%clk
0:01:50.2]} 27. Kb4 {[%clk 0:02:06.9]} 27... a5+ {[%clk 0:01:47.2]} 28. Kc5
{[%clk 0:02:02.7]} 28... b4 {[%clk 0:01:46.8]} 29. c3 {[%clk 0:02:00.2]} 29...
Rhb8 {[%clk 0:01:40]} 30. Rab1 {[%clk 0:01:54.8]} 30... b3 {[%clk 0:01:35.6]}
31. Ra1 {[%clk 0:01:37.5]} 31... Rb6 {[%clk 0:01:34.3]} 32. Rhc1 {[%clk
0:01:33.5]} 32... Rab8 {[%clk 0:01:26.1]} 33. c4 {[%clk 0:01:33.9]} 33... Rb4
{[%clk 0:01:21.5]} 34. Rc3 {[%clk 0:01:16.8]} 34... dxc4 {[%clk 0:01:20.5]} 35.
d5 {[%clk 0:01:10.1]} 35... cxd5 {[%clk 0:01:14.8]} 36. Kd4 {[%clk 0:01:08.8]}
36... Kc6 {[%clk 0:01:13.3]} 37. f4 {[%clk 0:01:06.2]} 37... Rc8 {[%clk
0:01:06.7]} 38. Ra3 {[%clk 0:01:05.8]} 38... Kb6 {[%clk 0:01:06.4]} 39. Ra1
{[%clk 0:01:05.4]} 39... Ka6 {[%clk 0:01:02.3]} 40. Ra3 {[%clk 0:01:05.8]} 40...
Rb7 {[%clk 0:01:00.9]} 41. Ra1 {[%clk 0:01:05.9]} 41... Rbc7 {[%clk 0:01:01]}
42. Ra3 {[%clk 0:01:05.9]} 42... Kb6 {[%clk 0:01:01.4]} 43. Ra1 {[%clk
0:01:05.9]} 43... Rb7 {[%clk 0:00:55.9]} 44. Ra3 {[%clk 0:01:05.4]} 44... Kc6
{[%clk 0:00:56]} 45. Ra1 {[%clk 0:01:04]} 45... Rb4 {[%clk 0:00:55.6]} 46. Ra3
{[%clk 0:01:04]} 46... Rcb8 {[%clk 0:00:54.6]} 47. Ra1 {[%clk 0:01:03.7]} 47...
Ra8 {[%clk 0:00:51.3]} 48. Ra3 {[%clk 0:01:03.7]} 48... Rxa4 {[%clk 0:00:50.6]}
49. Rxa4 {[%clk 0:01:03.7]} 49... Kb5 {[%clk 0:00:50.9]} 50. Ra3 {[%clk
0:01:04.3]} 50... Kb4 {[%clk 0:00:50.4]} 51. Rc1 {[%clk 0:00:46]} 51... a4
{[%clk 0:00:50.2]} 52. Rca1 {[%clk 0:00:44.3]} 52... Ra5 {[%clk 0:00:47.2]} 53.
Rc1 {[%clk 0:00:41]} 53... Ra6 {[%clk 0:00:40.6]} 54. Rc3 {[%clk 0:00:38.6]}
54... Ra7 {[%clk 0:00:38.2]} 55. Rc1 {[%clk 0:00:34.5]} 55... Ra8 {[%clk
0:00:37.3]} 56. Rc3 {[%clk 0:00:33.2]} 56... Rc8 {[%clk 0:00:33.8]} 57. Ra1
{[%clk 0:00:30.8]} 57... Rc7 {[%clk 0:00:31.7]} 58. Ra3 {[%clk 0:00:25.4]} 58...
Rc6 {[%clk 0:00:28.5]} 59. Ra1 {[%clk 0:00:24]} 59... Rc7 {[%clk 0:00:28.1]} 60.
Ra3 {[%clk 0:00:23.9]} 60... Ra7 {[%clk 0:00:28.1]} 61. Rc1 {[%clk 0:00:23.2]}
61... Rc7 {[%clk 0:00:24.9]} 62. Rc3 {[%clk 0:00:23.2]} 1/2-1/2

[Event "Early-Titled-Tuesday-Blitz-February-06-2024"]
[Site "Chess.com"]
[Date "2024.02.06"]
[Round "11"]
[White "Kaissa10"]
[Black "Brahianzevich"]
[Result "1/2-1/2"]
[WhiteElo "2303"]
[BlackElo "2424"]
[TimeControl "180+1"]
[EndTime "10:07:00 PST"]
[Termination "Game drawn by repetition"]

1. e4 {[%clk 0:03:00.9]} 1... c5 {[%clk 0:02:51.6]} 2. Nf3 {[%clk 0:03:00.2]}
2... d6 {[%clk 0:02:51.6]} 3. Bb5+ {[%clk 0:02:58]} 3... Nd7 {[%clk 0:02:51.2]}
4. d4 {[%clk 0:02:57.6]} 4... cxd4 {[%clk 0:02:52.1]} 5. Qxd4 {[%clk 0:02:58.2]}
5... e5 {[%clk 0:02:51.5]} 6. Qe3 {[%clk 0:02:56.4]} 6... a6 {[%clk 0:02:51.4]}
7. Bxd7+ {[%clk 0:02:56.3]} 7... Bxd7 {[%clk 0:02:52.3]} 8. c4 {[%clk
0:02:53.7]} 8... Qc7 {[%clk 0:02:46.9]} 9. b3 {[%clk 0:02:35.7]} 9... b5 {[%clk
0:02:46.2]} 10. Nbd2 {[%clk 0:02:29.9]} 10... Nf6 {[%clk 0:02:43.1]} 11. O-O
{[%clk 0:02:24.6]} 11... Be7 {[%clk 0:02:42.8]} 12. Bb2 {[%clk 0:02:23.2]} 12...
bxc4 {[%clk 0:02:32.3]} 13. Nxc4 {[%clk 0:02:24.1]} 13... Qb7 {[%clk 0:02:28.4]}
14. Nfd2 {[%clk 0:02:21]} 14... O-O {[%clk 0:02:20.9]} 15. Rac1 {[%clk
0:02:15.5]} 15... Be6 {[%clk 0:02:02.6]} 16. Ba3 {[%clk 0:02:12]} 16... Rfd8
{[%clk 0:01:24.7]} 17. Na5 {[%clk 0:01:59.3]} 17... Qd7 {[%clk 0:01:14]} 18. Nc6
{[%clk 0:01:53.6]} 18... Rdc8 {[%clk 0:01:13.9]} 19. Nxe7+ {[%clk 0:01:53.6]}
19... Qxe7 {[%clk 0:01:13.6]} 20. Nc4 {[%clk 0:01:54.3]} 20... Bxc4 {[%clk
0:01:12.6]} 21. Rxc4 {[%clk 0:01:55.2]} 21... Qe6 {[%clk 0:01:09.9]} 22. Rfc1
{[%clk 0:01:54.1]} 22... Rxc4 {[%clk 0:00:54.7]} 23. Rxc4 {[%clk 0:01:55]} 23...
d5 {[%clk 0:00:51.4]} 24. exd5 {[%clk 0:01:54.1]} 24... Qxd5 {[%clk 0:00:43.4]}
25. h3 {[%clk 0:01:50.4]} 25... h6 {[%clk 0:00:36.2]} 26. Kh2 {[%clk 0:01:17.9]}
26... e4 {[%clk 0:00:21.1]} 27. g3 {[%clk 0:01:14.8]} 27... Qh5 {[%clk
0:00:17.5]} 28. Qf4 {[%clk 0:01:08]} 28... Re8 {[%clk 0:00:15.8]} 29. Bb2 {[%clk
0:01:01.7]} 29... e3 {[%clk 0:00:11]} 30. Bxf6 {[%clk 0:00:51.9]} 30... gxf6
{[%clk 0:00:07.7]} 31. Qg4+ {[%clk 0:00:27.6]} 31... Qxg4 {[%clk 0:00:07]} 32.
Rxg4+ {[%clk 0:00:28.5]} 32... Kf8 {[%clk 0:00:05.5]} 33. fxe3 {[%clk 0:00:29]}
33... Rxe3 {[%clk 0:00:06.4]} 34. Ra4 {[%clk 0:00:27.7]} 34... Re6 {[%clk
0:00:06.8]} 35. Kg2 {[%clk 0:00:27.2]} 35... Kg7 {[%clk 0:00:07.3]} 36. Kf3
{[%clk 0:00:27.5]} 36... Kg6 {[%clk 0:00:07.6]} 37. Ra5 {[%clk 0:00:25.4]} 37...
f5 {[%clk 0:00:07.1]} 38. g4 {[%clk 0:00:16.8]} 38... fxg4+ {[%clk 0:00:07]} 39.
hxg4 {[%clk 0:00:17.7]} 39... f6 {[%clk 0:00:07.5]} 40. a3 {[%clk 0:00:15.9]}
40... Rb6 {[%clk 0:00:07.3]} 41. b4 {[%clk 0:00:16.2]} 41... Re6 {[%clk
0:00:06.9]} 42. Kf4 {[%clk 0:00:16.3]} 42... Rc6 {[%clk 0:00:06.9]} 43. Kf3
{[%clk 0:00:12.1]} 43... Rc3+ {[%clk 0:00:07]} 44. Kf4 {[%clk 0:00:12.5]} 44...
Rc4+ {[%clk 0:00:04.9]} 45. Kf3 {[%clk 0:00:12.5]} 45... Rc6 {[%clk 0:00:05.4]}
46. Ke4 {[%clk 0:00:11.9]} 46... Rc4+ {[%clk 0:00:05.1]} 47. Kf3 {[%clk
0:00:12.1]} 47... Rc6 {[%clk 0:00:04.3]} 48. Kf4 {[%clk 0:00:12.1]} 48... Rc4+
{[%clk 0:00:04.6]} 49. Kf3 {[%clk 0:00:11.9]} 1/2-1/2

[Event "Early-Titled-Tuesday-Blitz-February-06-2024"]
[Site "Chess.com"]
[Date "2024.02.06"]
[Round "11"]
[White "Abund"]
[Black "mbojan"]
[Result "1-0"]
[WhiteElo "2762"]
[BlackElo "2866"]
[TimeControl "180+1"]
[EndTime "10:07:03 PST"]
[Termination "Abund won on time"]

1. e4 {[%clk 0:03:00.9]} 1... c5 {[%clk 0:02:59.3]} 2. Nf3 {[%clk 0:03:01.3]}
2... Nc6 {[%clk 0:02:59.9]} 3. Bb5 {[%clk 0:03:01.5]} 3... e6 {[%clk 0:03:00.3]}
4. O-O {[%clk 0:03:01.9]} 4... Nge7 {[%clk 0:03:00.6]} 5. Re1 {[%clk 0:03:02.4]}
5... a6 {[%clk 0:03:01]} 6. Bf1 {[%clk 0:03:01.4]} 6... d5 {[%clk 0:03:01.1]} 7.
exd5 {[%clk 0:03:01]} 7... Nxd5 {[%clk 0:03:02]} 8. d4 {[%clk 0:03:00.6]} 8...
Nf6 {[%clk 0:03:02.3]} 9. Be3 {[%clk 0:03:00.1]} 9... Be7 {[%clk 0:03:02.8]} 10.
c4 {[%clk 0:02:58.2]} 10... O-O {[%clk 0:03:03.2]} 11. Nc3 {[%clk 0:02:57.8]}
11... cxd4 {[%clk 0:03:02.3]} 12. Nxd4 {[%clk 0:02:58.7]} 12... Ne5 {[%clk
0:03:02.9]} 13. h3 {[%clk 0:02:52.1]} 13... Bd7 {[%clk 0:03:02.4]} 14. Nf3
{[%clk 0:02:24.6]} 14... Ng6 {[%clk 0:02:59.4]} 15. Qb3 {[%clk 0:02:18.4]} 15...
Qc7 {[%clk 0:02:39.6]} 16. Bb6 {[%clk 0:02:15.6]} 16... Qc8 {[%clk 0:02:38.8]}
17. Rad1 {[%clk 0:02:12.8]} 17... Bc5 {[%clk 0:02:23.6]} 18. Bxc5 {[%clk
0:02:09.2]} 18... Qxc5 {[%clk 0:02:24.5]} 19. Na4 {[%clk 0:01:57.3]} 19... Bxa4
{[%clk 0:02:18.7]} 20. Qxa4 {[%clk 0:01:58.2]} 20... Rfd8 {[%clk 0:02:19.1]} 21.
b4 {[%clk 0:01:54.8]} 21... Qc7 {[%clk 0:02:17.7]} 22. Qb3 {[%clk 0:01:53]}
22... a5 {[%clk 0:02:10.6]} 23. a3 {[%clk 0:01:52.8]} 23... h6 {[%clk
0:02:08.6]} 24. g3 {[%clk 0:01:49.8]} 24... Ne7 {[%clk 0:02:06.9]} 25. Nd4
{[%clk 0:01:46]} 25... axb4 {[%clk 0:02:00.7]} 26. axb4 {[%clk 0:01:45.6]} 26...
Nf5 {[%clk 0:01:59.8]} 27. Nxf5 {[%clk 0:01:43.5]} 27... exf5 {[%clk 0:02:00.7]}
28. Bg2 {[%clk 0:01:41]} 28... f4 {[%clk 0:01:57.1]} 29. g4 {[%clk 0:01:31.8]}
29... Rxd1 {[%clk 0:01:56.8]} 30. Rxd1 {[%clk 0:01:31.5]} 30... Re8 {[%clk
0:01:57.4]} 31. c5 {[%clk 0:01:30.6]} 31... b6 {[%clk 0:01:49.6]} 32. c6 {[%clk
0:01:26.7]} 32... Qe7 {[%clk 0:01:29.6]} 33. b5 {[%clk 0:01:21.7]} 33... Qc5
{[%clk 0:01:29.5]} 34. Qd3 {[%clk 0:01:15.5]} 34... Qe5 {[%clk 0:00:39.9]} 35.
Bf3 {[%clk 0:01:11.5]} 35... Nh7 {[%clk 0:00:34.9]} 36. h4 {[%clk 0:01:06.8]}
36... Nf8 {[%clk 0:00:31.6]} 37. Qd4 {[%clk 0:00:56.7]} 37... Qe7 {[%clk
0:00:21.6]} 38. Qxb6 {[%clk 0:00:53.1]} 38... Ng6 {[%clk 0:00:22.2]} 39. h5
{[%clk 0:00:40.9]} 39... Nh4 {[%clk 0:00:22.6]} 40. Bg2 {[%clk 0:00:27.6]} 40...
Qe2 {[%clk 0:00:19.9]} 41. Rd8 {[%clk 0:00:16.9]} 41... Kh7 {[%clk 0:00:01.5]}
42. Rxe8 {[%clk 0:00:16.5]} 42... Qd1+ {[%clk 0:00:02]} 43. Kh2 {[%clk
0:00:14.8]} 43... Qxg4 {[%clk 0:00:02.7]} 44. Bh1 {[%clk 0:00:09.9]} 44... f3
{[%clk 0:00:01.9]} 45. Qe3 {[%clk 0:00:07.1]} 1-0

[Event "Early-Titled-Tuesday-Blitz-February-06-2024"]
[Site "Chess.com"]
[Date "2024.02.06"]
[Round "11"]
[White "CarlosjPineror"]
[Black "Mesa_1"]
[Result "1-0"]
[WhiteElo "2711"]
[BlackElo "2573"]
[TimeControl "180+1"]
[EndTime "10:07:03 PST"]
[Termination "CarlosjPineror won on time"]

1. e4 {[%clk 0:03:00.9]} 1... c5 {[%clk 0:03:00.6]} 2. Nf3 {[%clk 0:02:59.6]}
2... e6 {[%clk 0:03:01.3]} 3. g3 {[%clk 0:02:58.7]} 3... d5 {[%clk 0:03:00.2]}
4. exd5 {[%clk 0:02:58.4]} 4... exd5 {[%clk 0:03:01.1]} 5. Bg2 {[%clk
0:02:55.7]} 5... Nc6 {[%clk 0:02:58.8]} 6. O-O {[%clk 0:02:55]} 6... Nf6 {[%clk
0:02:58.4]} 7. d4 {[%clk 0:02:54.5]} 7... cxd4 {[%clk 0:02:52.6]} 8. Nxd4 {[%clk
0:02:54.3]} 8... Be7 {[%clk 0:02:53.3]} 9. Nc3 {[%clk 0:02:52.1]} 9... O-O
{[%clk 0:02:53.3]} 10. Bg5 {[%clk 0:02:52.6]} 10... Bg4 {[%clk 0:02:51.8]} 11.
Qd2 {[%clk 0:02:46.5]} 11... h6 {[%clk 0:02:47.6]} 12. Be3 {[%clk 0:02:38.3]}
12... Qd7 {[%clk 0:02:37.3]} 13. Nxc6 {[%clk 0:02:31.6]} 13... bxc6 {[%clk
0:02:38.2]} 14. Na4 {[%clk 0:02:31.9]} 14... Bh3 {[%clk 0:02:34.8]} 15. Nc5
{[%clk 0:02:24.2]} 15... Bxc5 {[%clk 0:02:34]} 16. Bxc5 {[%clk 0:02:24.8]} 16...
Rfe8 {[%clk 0:02:33.6]} 17. f3 {[%clk 0:02:14.5]} 17... Bxg2 {[%clk 0:02:30.9]}
18. Kxg2 {[%clk 0:02:14]} 18... Re6 {[%clk 0:02:20.9]} 19. Bd4 {[%clk
0:02:11.1]} 19... Rae8 {[%clk 0:02:20]} 20. Rf2 {[%clk 0:02:11.1]} 20... Nh7
{[%clk 0:02:18.4]} 21. h4 {[%clk 0:02:08.3]} 21... Nf8 {[%clk 0:02:19]} 22. b4
{[%clk 0:02:02.7]} 22... Ng6 {[%clk 0:02:18.1]} 23. c3 {[%clk 0:02:00.4]} 23...
Ne5 {[%clk 0:02:18.1]} 24. h5 {[%clk 0:01:49.9]} 24... Nc4 {[%clk 0:02:18]} 25.
Qf4 {[%clk 0:01:49.7]} 25... Re2 {[%clk 0:02:12.1]} 26. Rf1 {[%clk 0:01:41.4]}
26... f6 {[%clk 0:02:11.7]} 27. a4 {[%clk 0:01:34]} 27... a6 {[%clk 0:01:51.4]}
28. a5 {[%clk 0:01:33.8]} 28... Re1 {[%clk 0:01:44.1]} 29. Qg4 {[%clk
0:01:12.4]} 29... Qxg4 {[%clk 0:01:41.6]} 30. fxg4 {[%clk 0:01:13.3]} 30... R1e4
{[%clk 0:01:35.2]} 31. Rf4 {[%clk 0:01:09.7]} 31... Rxd4 {[%clk 0:01:15.8]} 32.
Rxd4 {[%clk 0:01:06.4]} 32... Ne3+ {[%clk 0:01:16.7]} 33. Kf2 {[%clk 0:01:03.5]}
33... Nxf1 {[%clk 0:01:15.8]} 34. Kxf1 {[%clk 0:01:01.4]} 34... Re3 {[%clk
0:01:16.2]} 35. c4 {[%clk 0:01:01.6]} 35... Rxg3 {[%clk 0:01:04.5]} 36. cxd5
{[%clk 0:00:51.5]} 36... cxd5 {[%clk 0:01:05.4]} 37. Kf2 {[%clk 0:00:51.1]}
37... Rb3 {[%clk 0:01:01.8]} 38. Ke2 {[%clk 0:00:40.5]} 38... Kf7 {[%clk
0:01:00.4]} 39. Kd2 {[%clk 0:00:40.8]} 39... Ke6 {[%clk 0:00:58.6]} 40. Kc2
{[%clk 0:00:41.1]} 40... Rg3 {[%clk 0:00:53.3]} 41. Rd3 {[%clk 0:00:31.6]} 41...
Rxg4 {[%clk 0:00:49.4]} 42. Kb3 {[%clk 0:00:31.6]} 42... Rh4 {[%clk 0:00:41.5]}
43. Rc3 {[%clk 0:00:25.3]} 43... Kd6 {[%clk 0:00:35.4]} 44. Rc8 {[%clk
0:00:25.6]} 44... f5 {[%clk 0:00:26.3]} 45. Ra8 {[%clk 0:00:21.1]} 45... f4
{[%clk 0:00:24.1]} 46. Rxa6+ {[%clk 0:00:21.7]} 46... Ke5 {[%clk 0:00:24.7]} 47.
Rc6 {[%clk 0:00:17]} 47... f3 {[%clk 0:00:22.6]} 48. a6 {[%clk 0:00:17.4]} 48...
f2 {[%clk 0:00:20.6]} 49. Rc1 {[%clk 0:00:17.7]} 49... Rf4 {[%clk 0:00:16.2]}
50. a7 {[%clk 0:00:16.8]} 50... Rf8 {[%clk 0:00:14.9]} 51. b5 {[%clk 0:00:17]}
51... Ke4 {[%clk 0:00:13.9]} 52. b6 {[%clk 0:00:17.4]} 52... Ke3 {[%clk
0:00:12.9]} 53. b7 {[%clk 0:00:17.9]} 1-0

[Event "Early-Titled-Tuesday-Blitz-February-06-2024"]
[Site "Chess.com"]
[Date "2024.02.06"]
[Round "11"]
[White "verrbaa"]
[Black "vladgoncharov"]
[Result "0-1"]
[WhiteElo "2497"]
[BlackElo "2622"]
[TimeControl "180+1"]
[EndTime "10:07:04 PST"]
[Termination "vladgoncharov won on time"]

1. e4 {[%clk 0:02:34.1]} 1... e6 {[%clk 0:02:59.5]} 2. d4 {[%clk 0:02:33.8]}
2... d5 {[%clk 0:02:59.7]} 3. Nc3 {[%clk 0:02:34.4]} 3... Nc6 {[%clk 0:02:56.1]}
4. Nf3 {[%clk 0:02:28.9]} 4... Nf6 {[%clk 0:02:55.4]} 5. e5 {[%clk 0:02:28.9]}
5... Ne4 {[%clk 0:02:55.4]} 6. Ne2 {[%clk 0:02:29.2]} 6... f6 {[%clk 0:02:37.7]}
7. exf6 {[%clk 0:02:22.5]} 7... Qxf6 {[%clk 0:02:36.3]} 8. Be3 {[%clk
0:02:10.7]} 8... Bd6 {[%clk 0:02:30.4]} 9. Ng3 {[%clk 0:02:09]} 9... O-O {[%clk
0:02:21.1]} 10. Bd3 {[%clk 0:02:06.6]} 10... Nb4 {[%clk 0:02:04.3]} 11. Nxe4
{[%clk 0:01:54]} 11... Nxd3+ {[%clk 0:01:57.2]} 12. Qxd3 {[%clk 0:01:54.1]}
12... dxe4 {[%clk 0:01:57]} 13. Qxe4 {[%clk 0:01:54.3]} 13... Bd7 {[%clk
0:01:54.2]} 14. Qxb7 {[%clk 0:01:32.5]} 14... Rab8 {[%clk 0:01:51.1]} 15. Qe4
{[%clk 0:01:30.2]} 15... Rxb2 {[%clk 0:01:50.2]} 16. O-O {[%clk 0:01:30.3]}
16... Rb6 {[%clk 0:01:34.2]} 17. Ng5 {[%clk 0:01:16.9]} 17... g6 {[%clk
0:01:29.8]} 18. c4 {[%clk 0:01:15.9]} 18... Rb4 {[%clk 0:01:24.3]} 19. Qd3
{[%clk 0:01:09.3]} 19... Bc6 {[%clk 0:01:19.4]} 20. d5 {[%clk 0:01:01.5]} 20...
exd5 {[%clk 0:01:18.4]} 21. cxd5 {[%clk 0:01:01.6]} 21... Bb5 {[%clk 0:01:18.5]}
22. Qc2 {[%clk 0:00:49.8]} 22... Bxf1 {[%clk 0:01:13.1]} 23. Rxf1 {[%clk
0:00:50.7]} 23... Qe5 {[%clk 0:01:13]} 24. g3 {[%clk 0:00:49.2]} 24... Qxd5
{[%clk 0:01:11.2]} 25. Rd1 {[%clk 0:00:43.7]} 25... Qc4 {[%clk 0:01:10.4]} 26.
Qd2 {[%clk 0:00:40.8]} 26... Ra4 {[%clk 0:01:06.9]} 27. Rc1 {[%clk 0:00:33.9]}
27... Qxa2 {[%clk 0:01:03.8]} 28. Qd1 {[%clk 0:00:24.4]} 28... Ra5 {[%clk
0:00:59.8]} 29. Qg4 {[%clk 0:00:20.1]} 29... Raf5 {[%clk 0:00:54.9]} 30. Qh4
{[%clk 0:00:15.9]} 30... h5 {[%clk 0:00:47.5]} 31. Ne4 {[%clk 0:00:15.7]} 31...
Qf7 {[%clk 0:00:41.8]} 32. Rd1 {[%clk 0:00:12.5]} 32... Be7 {[%clk 0:00:35.2]}
33. Qh3 {[%clk 0:00:12.1]} 33... Rd8 {[%clk 0:00:35.1]} 34. Rc1 {[%clk
0:00:11.3]} 34... Bf8 {[%clk 0:00:32.8]} 35. Qg2 {[%clk 0:00:09.9]} 35... c6
{[%clk 0:00:30.1]} 36. h4 {[%clk 0:00:07.7]} 36... Qd5 {[%clk 0:00:27.2]} 37.
Kh2 {[%clk 0:00:04.5]} 37... Re8 {[%clk 0:00:25.8]} 38. Ng5 {[%clk 0:00:03.9]}
38... Qxg2+ {[%clk 0:00:25.3]} 39. Kxg2 {[%clk 0:00:04.8]} 39... c5 {[%clk
0:00:25.6]} 40. Ra1 {[%clk 0:00:03.2]} 40... Ra8 {[%clk 0:00:23.4]} 41. Ra6
{[%clk 0:00:02.7]} 41... c4 {[%clk 0:00:23.7]} 42. Rxg6+ {[%clk 0:00:02.6]}
42... Kh8 {[%clk 0:00:22.1]} 43. Rc6 {[%clk 0:00:03.2]} 43... Bg7 {[%clk
0:00:20]} 44. Rxc4 {[%clk 0:00:02.7]} 44... a5 {[%clk 0:00:20.2]} 45. Ra4 {[%clk
0:00:03]} 45... Rb5 {[%clk 0:00:19.6]} 46. Nf7+ {[%clk 0:00:03.1]} 46... Kh7
{[%clk 0:00:19]} 47. Nd6 {[%clk 0:00:03.8]} 47... Rb4 {[%clk 0:00:18.6]} 48. Ra3
{[%clk 0:00:03.4]} 48... a4 {[%clk 0:00:18.9]} 49. Nf5 {[%clk 0:00:02.7]} 49...
Bb2 {[%clk 0:00:17.7]} 50. Rd3 {[%clk 0:00:02.6]} 50... a3 {[%clk 0:00:17.5]}
51. Rd7+ {[%clk 0:00:02.7]} 51... Kg6 {[%clk 0:00:17.5]} 52. Nd6 {[%clk
0:00:02.3]} 52... a2 {[%clk 0:00:16.8]} 0-1

[Event "Early-Titled-Tuesday-Blitz-February-06-2024"]
[Site "Chess.com"]
[Date "2024.02.06"]
[Round "11"]
[White "NM_Antelacus"]
[Black "MaxLeto"]
[Result "1/2-1/2"]
[WhiteElo "2236"]
[BlackElo "2439"]
[TimeControl "180+1"]
[EndTime "10:07:04 PST"]
[Termination "Game drawn by repetition"]

1. e4 {[%clk 0:03:00.9]} 1... c5 {[%clk 0:02:59.9]} 2. Nf3 {[%clk 0:03:00.6]}
2... d6 {[%clk 0:03:00]} 3. c3 {[%clk 0:03:00.4]} 3... Nf6 {[%clk 0:03:00.5]} 4.
Be2 {[%clk 0:03:00.1]} 4... Nbd7 {[%clk 0:03:00.5]} 5. d3 {[%clk 0:02:59]} 5...
b6 {[%clk 0:03:00.5]} 6. O-O {[%clk 0:02:58.7]} 6... Bb7 {[%clk 0:03:01.2]} 7.
Nbd2 {[%clk 0:02:56.4]} 7... g6 {[%clk 0:03:00.7]} 8. Re1 {[%clk 0:02:56.1]}
8... Bg7 {[%clk 0:03:01.6]} 9. Nf1 {[%clk 0:02:55.2]} 9... O-O {[%clk 0:03:02]}
10. Ng3 {[%clk 0:02:55.1]} 10... e5 {[%clk 0:03:02.9]} 11. Bf1 {[%clk
0:02:53.2]} 11... d5 {[%clk 0:03:02.3]} 12. exd5 {[%clk 0:02:50.5]} 12... Nxd5
{[%clk 0:03:03.2]} 13. d4 {[%clk 0:02:49]} 13... Qc7 {[%clk 0:02:50.2]} 14. dxe5
{[%clk 0:02:31.5]} 14... Nxe5 {[%clk 0:02:49.3]} 15. Nxe5 {[%clk 0:02:30.9]}
15... Bxe5 {[%clk 0:02:49.4]} 16. Bh6 {[%clk 0:02:28]} 16... Rfe8 {[%clk
0:02:49.3]} 17. Qg4 {[%clk 0:02:21.7]} 17... Kh8 {[%clk 0:02:27.9]} 18. Bc4
{[%clk 0:02:16.5]} 18... f5 {[%clk 0:02:27.3]} 19. Qh4 {[%clk 0:02:08.7]} 19...
Qc6 {[%clk 0:02:16.7]} 20. f3 {[%clk 0:02:05]} 20... b5 {[%clk 0:02:11.8]} 21.
Bf1 {[%clk 0:01:56.1]} 21... c4 {[%clk 0:02:10.2]} 22. Rad1 {[%clk 0:01:49.7]}
22... Kg8 {[%clk 0:01:52]} 23. Ne2 {[%clk 0:01:45.4]} 23... Qb6+ {[%clk
0:01:28.1]} 24. Kh1 {[%clk 0:01:41.5]} 24... Ne3 {[%clk 0:01:17.6]} 25. Bxe3
{[%clk 0:01:29]} 25... Qxe3 {[%clk 0:01:18.5]} 26. Nd4 {[%clk 0:01:25.2]} 26...
Qf4 {[%clk 0:01:13.5]} 27. Qxf4 {[%clk 0:01:22.9]} 27... Bxf4 {[%clk 0:01:14.4]}
28. Nxb5 {[%clk 0:01:21.5]} 28... Rec8 {[%clk 0:00:53.6]} 29. Nd6 {[%clk
0:01:17.7]} 29... Rc7 {[%clk 0:00:45.5]} 30. Nxb7 {[%clk 0:01:12.5]} 30... Rxb7
{[%clk 0:00:46.4]} 31. Bxc4+ {[%clk 0:01:11.9]} 31... Kg7 {[%clk 0:00:47.3]} 32.
Bb3 {[%clk 0:01:10.4]} 32... Rab8 {[%clk 0:00:40.3]} 33. g3 {[%clk 0:01:06.6]}
33... Bg5 {[%clk 0:00:37.5]} 34. Re2 {[%clk 0:01:03.9]} 34... a5 {[%clk
0:00:36]} 35. Kg2 {[%clk 0:00:56.9]} 35... Bf6 {[%clk 0:00:34]} 36. Rdd2 {[%clk
0:00:53.1]} 36... Rc8 {[%clk 0:00:28.3]} 37. Be6 {[%clk 0:00:49]} 37... Re8
{[%clk 0:00:23.5]} 38. Bd5 {[%clk 0:00:44.5]} 38... Rxe2+ {[%clk 0:00:19.8]} 39.
Rxe2 {[%clk 0:00:43.8]} 39... Rd7 {[%clk 0:00:20.3]} 40. c4 {[%clk 0:00:42.6]}
40... Bd4 {[%clk 0:00:19.1]} 41. Rd2 {[%clk 0:00:41.2]} 41... Bc5 {[%clk
0:00:19.4]} 42. f4 {[%clk 0:00:39.8]} 42... Re7 {[%clk 0:00:19.5]} 43. Bf3
{[%clk 0:00:35.6]} 43... Re3 {[%clk 0:00:16.7]} 44. Re2 {[%clk 0:00:33.9]} 44...
Rd3 {[%clk 0:00:16]} 45. b3 {[%clk 0:00:30.7]} 45... Kf6 {[%clk 0:00:14]} 46.
Bd5 {[%clk 0:00:27.7]} 46... Rd1 {[%clk 0:00:12.2]} 47. Re6+ {[%clk 0:00:25.1]}
47... Kg7 {[%clk 0:00:12.4]} 48. Re2 {[%clk 0:00:22.7]} 48... Kf6 {[%clk
0:00:11.9]} 49. Re6+ {[%clk 0:00:18.3]} 49... Kg7 {[%clk 0:00:11.9]} 50. Kf3
{[%clk 0:00:14.9]} 50... Rd2 {[%clk 0:00:11.3]} 51. Re2 {[%clk 0:00:13.7]} 51...
Rd3+ {[%clk 0:00:10.6]} 52. Kg2 {[%clk 0:00:13.6]} 52... Kf6 {[%clk 0:00:10.7]}
53. Kf1 {[%clk 0:00:13.3]} 53... Rd1+ {[%clk 0:00:10.1]} 54. Re1 {[%clk
0:00:13.3]} 54... Rd2 {[%clk 0:00:10.5]} 55. Re2 {[%clk 0:00:13.8]} 55... Rd1+
{[%clk 0:00:11.1]} 56. Re1 {[%clk 0:00:13.3]} 56... Rd2 {[%clk 0:00:11.4]} 57.
Re2 {[%clk 0:00:13.8]} 57... Rd1+ {[%clk 0:00:09.8]} 1/2-1/2